fUSD/lending_fUSD_20241227
["ID","MTS","AMOUNT","RATE_DAILY","PERIOD"]
[346852690,1735326641447,-544.22,0.00010476,2]
[346852692,1735326641456,-500.0,0.00010476,2]
[346852694,1735326641465,-500.0,0.00010476,2]
[346852696,1735326641476,-1708.88,0.00010476,2]
[346852698,1735326641485,-500.0,0.00010476,2]
[346852700,1735326641494,-500.0,0.00010476,2]
[346852702,1735326641503,-500.0,0.00010476,2]
[346852704,1735326641512,-500.0,0.00010476,2]
[346852706,1735326641524,-500.0,0.00010476,2]
[346852709,1735326641533,-500.0,0.00010476,2]
[346852710,1735326641542,-500.0,0.00010476,2]
[346852713,1735326641552,-500.0,0.00010476,2]
[346852715,1735326641561,-2033.74,0.00010476,2]
[346852717,1735326641570,-500.0,0.00010476,2]
[346852719,1735326641579,-727.57,0.00010476,2]
[346852721,1735326641588,-500.0,0.00010476,2]
[346852723,1735326641598,-2249.3,0.00010476,2]
[346852725,1735326641609,-500.0,0.00010476,2]
[346852727,1735326641619,-500.0,0.00010476,2]
[346852728,1735326641628,-684.1,0.00010476,2]
[346852731,1735326641637,-500.58168445,0.00010476,2]
[346852732,1735326641646,-500.0,0.00010476,2]
[346852734,1735326641657,-162.97845884,0.00010476,2]
[346852737,1735326641666,-500.0,0.00010476,2]
[346852739,1735326641676,-681.5,0.00010476,2]
[346852741,1735326641686,-1607.15,0.00010476,2]
[346852742,1735326641695,-500.0,0.00010476,2]
[346852744,1735326641704,-500.0,0.00010476,2]
[346852746,1735326641713,-672.93,0.00010476,2]
[346852748,1735326641723,-500.0,0.00010476,2]
[346852750,1735326641732,-500.0,0.00010476,2]
[346852753,1735326641741,-500.0,0.00010476,2]
[346852754,1735326641750,-150.0,0.00010476,2]
[346852757,1735326641760,-500.0,0.00010476,2]
[346852758,1735326641769,-425.66747902,0.00010476,2]
[346852761,1735326641780,-720.6,0.00010476,2]
[346852763,1735326641789,-3860.47,0.00010476,2]
[346852765,1735326641799,-500.0,0.00010476,2]
[346852766,1735326641808,-326.31410981,0.00010476,2]
[346852768,1735326641817,-582.86,0.00010476,2]
[346852771,1735326641827,-500.0,0.00010476,2]
[346852772,1735326641838,-500.0,0.00010476,2]
[346852774,1735326641849,-500.0,0.00010476,2]
[346852775,1735326641858,-10659.57,0.00010476,2]
[346852776,1735326641867,-905.6,0.00010476,2]
[346852777,1735326641875,-500.0,0.00010476,2]
[346852778,1735326641884,-500.0,0.00010476,2]
[346852779,1735326641893,-500.43404526,0.00010477,2]
[346852780,1735326641902,-500.0,0.00010477,2]
[346852781,1735326641912,-500.0,0.00010477,2]
[346852782,1735326641921,-515.89500607,0.00010477,2]
[346852783,1735326641930,-504.62144776,0.00010477,2]
[346852784,1735326641939,-500.0,0.00010477,2]
[346852785,1735326641949,-500.0,0.00010477,2]
[346852786,1735326641958,-1382.69,0.00010477,2]
[346852787,1735326641967,-910.82,0.00010477,2]
[346852788,1735326641976,-766.4,0.00010477,2]
[346852789,1735326641985,-500.0,0.00010477,2]
[346852790,1735326641995,-771.99,0.00010477,2]
[346852791,1735326642005,-500.0,0.00010477,2]
[346852792,1735326642014,-1217.0,0.00010477,2]
[346852793,1735326642023,-870.68,0.00010477,2]
[346852794,1735326642033,-502.21086994,0.00010477,2]
[346852795,1735326642042,-1031.01,0.00010477,2]
[346852796,1735326642051,-767.4,0.00010477,2]
[346852797,1735326642060,-500.0,0.00010477,2]
[346852798,1735326642069,-1250.3,0.00010477,2]
[346852799,1735326642079,-626.29,0.00010477,2]
[346852800,1735326642088,-1413.6,0.00010477,2]
[346852801,1735326642097,-970.4,0.00010477,2]
[346852802,1735326642107,-500.0,0.00010477,2]
[346852803,1735326642116,-965.46,0.00010477,2]
[346852804,1735326642125,-1446.83,0.00010477,2]
[346852805,1735326642135,-1068.3,0.00010477,2]
[346852806,1735326642144,-791.62,0.00010477,2]
[346852807,1735326642153,-1079.32,0.00010477,2]
[346852808,1735326642162,-500.0,0.00010477,2]
[346852809,1735326642171,-500.0,0.00010477,2]
[346852810,1735326642181,-2053.87,0.00010477,2]
[346852811,1735326642190,-1438.88,0.00010477,2]
[346852812,1735326642199,-1869.57,0.00010477,2]
[346852813,1735326642208,-672.97,0.00010477,2]
[346852814,1735326642217,-1899.35,0.00010477,2]
[346852815,1735326642226,-500.0,0.00010477,2]
[346852816,1735326642236,-1352.92,0.00010477,2]
[346852817,1735326642245,-1160.83,0.00010477,2]
[346852818,1735326642254,-500.0,0.00010477,2]
[346852819,1735326642263,-500.0,0.00010477,2]
[346852820,1735326642273,-1741.26,0.00010477,2]
[346852821,1735326642282,-500.0,0.00010477,2]
[346852822,1735326642292,-635.5,0.00010477,2]
[346852823,1735326642301,-500.0,0.00010477,2]
[346852824,1735326642310,-500.0,0.00010477,2]
[346852825,1735326642319,-500.0,0.00010478,2]
[346852826,1735326642328,-500.0,0.00010478,2]
[346852827,1735326642337,-693.28,0.00010478,2]
[346852828,1735326642347,-1050.47,0.00010478,2]
[346852829,1735326642356,-500.0,0.00010478,2]
[346852830,1735326642365,-951.62,0.00010478,2]
[346852831,1735326642374,-500.0,0.00010478,2]
[346852832,1735326642383,-500.0,0.00010478,2]
[346852833,1735326642393,-500.0,0.00010478,2]
[346852834,1735326642402,-500.0,0.00010478,2]
[346852835,1735326642411,-500.0,0.00010478,2]
[346852836,1735326642421,-500.0,0.00010478,2]
[346852837,1735326642430,-4183.24,0.00010478,2]
[346852838,1735326642440,-2127.43,0.00010478,2]
[346852839,1735326642450,-1719.57,0.00010478,2]
[346852840,1735326642459,-3135.5,0.00010478,2]
[346852841,1735326642468,-23522.56,0.00010478,2]
[346852842,1735326642478,-500.0,0.00010479,2]
[346852843,1735326642488,-1756.43,0.00010479,2]
[346852844,1735326642497,-1377.6,0.00010479,2]
[346852845,1735326642507,-2140.36,0.00010479,2]
[346852846,1735326642517,-7228.29,0.00010479,2]
[346852847,1735326642529,-2005.23,0.00010479,2]
[346852848,1735326642539,-4469.15,0.00010479,2]
[346852849,1735326642549,-2197.74,0.00010479,2]
[346852850,1735326642559,-7846.74,0.00010479,2]
[346852851,1735326642568,-500.0,0.00010479,2]
[346852852,1735326642579,-2150.93,0.00010479,2]
[346852853,1735326642590,-4252.22,0.00010479,2]
[346852854,1735326642603,-1796.99,0.00010479,2]
[346852855,1735326642615,-2140.32,0.00010479,2]
[346852856,1735326642624,-623.47,0.00010479,2]
[346852857,1735326642634,-3808.53,0.00010479,2]
[346852858,1735326642643,-5675.49,0.00010479,2]
[346852859,1735326642655,-893.2,0.00010479,2]
[346852860,1735326642665,-500.0,0.00010479,2]
[346852861,1735326642676,-4064.19,0.00010479,2]
[346852862,1735326642687,-2137.52,0.00010479,2]
[346852863,1735326642698,-2482.44,0.00010479,2]
[346852864,1735326642708,-4031.54,0.00010479,2]
[346852865,1735326642717,-1812.4,0.00010479,2]
[346852866,1735326642727,-500.0,0.00010479,2]
[346852867,1735326642736,-500.0,0.00010479,2]
[346852868,1735326642745,-500.0,0.00010479,2]
[346852869,1735326642755,-500.0,0.00010479,2]
[346852870,1735326642764,-500.0,0.00010479,2]
[346852871,1735326642776,-438.4,0.00010479,2]
[346852872,1735326642786,-795.9,0.00010479,2]
[346852873,1735326642795,-5133.74,0.00010479,2]
[346852874,1735326642805,-2059.88,0.00010479,2]
[346852875,1735326642814,-709.36,0.00010479,2]
[346852876,1735326642823,-2255.77,0.00010479,2]
[346852877,1735326642833,-1497.74,0.00010479,2]
[346852878,1735326642843,-500.0,0.00010479,2]
[346852879,1735326642852,-500.0,0.00010479,2]
[346852880,1735326642862,-500.0,0.00010479,2]
[346852881,1735326642871,-647.08,0.00010479,2]
[346852882,1735326642881,-500.0,0.00010479,2]
[346852883,1735326642890,-500.0,0.00010479,2]
[346852884,1735326642900,-500.0,0.00010479,2]
[346852885,1735326642909,-370.26,0.00010479,2]
[346852886,1735326642920,-2122.48,0.00010479,2]
[346852887,1735326642929,-1821.02,0.00010479,2]
[346852888,1735326642939,-1671.46,0.00010479,2]
[346852889,1735326642948,-1297.52,0.00010479,2]
[346852890,1735326642958,-4947.2984086,0.00010479,2]
[346852891,1735326642967,-2543.95,0.00010479,2]
[346852892,1735326642977,-2385.0,0.00010479,2]
[346852893,1735326642986,-5262.9795726,0.00010479,2]
[346852895,1735326643488,-8288.99034212,0.00010479,2]
[346852896,1735326643700,-1036.00021238,0.00010479,2]
[346852897,1735326643710,-6666.97,0.00010479,2]
[346852898,1735326643720,-500.0,0.00010479,2]
[346852899,1735326643730,-1840.97050751,0.00010479,2]
[346852914,1735326645600,-370.04878004,0.00010474,2]
[346852916,1735326645616,-129.95121996,0.00010474,2]
[346852918,1735326645626,-286.37879274,0.00010474,2]
[346852920,1735326645637,-217.64120726,0.00010474,2]
[346852921,1735326645646,-115.77129257,0.00010475,2]
[346852922,1735326645659,-782.30870743,0.00010475,2]
[346852923,1735326645670,-498.53474607,0.00010475,2]
[346852924,1735326645679,-500.0,0.00010475,2]
[346852925,1735326645689,-500.0,0.00010476,2]
[346852926,1735326645698,-995.71949249,0.00010479,2]
[346852927,1735326645708,-939.39,0.00010479,2]
[346852928,1735326645717,-5125.43425121,0.00010479,2]
[346852929,1735326645745,-40.05574879,0.00010479,2]
[346852930,1735326645754,-382.08118761,0.00010479,2]
[346852931,1735326645766,-2848.59881239,0.00010479,2]
[346852932,1735326645777,-6565.81,0.00010479,2]
[346852933,1735326645786,-3072.53,0.00010479,2]
[346852934,1735326645796,-23657.74,0.00010479,2]
[346852935,1735326645805,-312691.57514445,0.0001048,2]
[346852936,1735326645816,-434044.85058811,0.0001048,2]
[346852937,1735326646176,-419.79,0.00010474,2]
[346852938,1735326646192,-80.21,0.00010474,2]
[346852939,1735326646206,-500.0,0.00010474,2]
[346852940,1735326646218,-500.0,0.00010475,2]
[346852941,1735326646230,-17105.88905575,0.0001048,2]
[346852942,1735326646260,-1421.05,0.0001048,2]
[346852943,1735326646275,-305.73329223,0.0001048,2]
[346852944,1735326646289,-1693.83655973,0.0001048,2]
[346852945,1735326646320,-2004.69357214,0.0001048,2]
[346852946,1735326646335,-342.38583115,0.0001048,2]
[346852947,1735326646348,-342.89261828,0.0001048,2]
[346852948,1735326646365,-3318.96264027,0.0001048,2]
[346852969,1735326647191,-585.17399981,0.0001048,2]
[346852970,1735326647273,-2095750.8483806,0.0001048,2]
[346852971,1735326647284,-151.0,0.0001048,2]
[346852972,1735326647296,-1000.0,0.000105,2]
[346852973,1735326647307,-150.61,0.000105,2]
[346852974,1735326647318,-245.28,0.00010546,2]
[346852975,1735326647328,-276.12,0.00010547,2]
[346852976,1735326647339,-150.77,0.00010567,2]
[346852977,1735326647350,-150.8,0.00010567,2]
[346852978,1735326647362,-152.36,0.00010567,2]
[346852979,1735326647373,-1329.0,0.00010587,2]
[346852980,1735326647385,-1000.0,0.000106,2]
[346852981,1735326647395,-500.0,0.00010616,2]
[346852982,1735326647407,-683.85,0.00010686,2]
[346852983,1735326647418,-150.847124,0.00010744,2]
[346852984,1735326647430,-506.5,0.00010747,2]
[346852985,1735326647442,-2358.91,0.00010747,2]
[346852986,1735326647453,-615.7,0.00010747,2]
[346852987,1735326647465,-7797.98,0.00010747,2]
[346852988,1735326647477,-2035.04,0.00010747,2]
[346852989,1735326647488,-1597.51,0.00010747,2]
[346852990,1735326647499,-1224.72,0.00010747,2]
[346852991,1735326647510,-1699.94,0.00010747,2]
[346852992,1735326647521,-2928.58,0.00010747,2]
[346852993,1735326647535,-1034.38,0.00010747,2]
[346852994,1735326647546,-500.0,0.00010747,2]
[346852995,1735326647560,-905.28,0.00010748,2]
[346852996,1735326647571,-1592.66,0.00010748,2]
[346852997,1735326647582,-1070.862548,0.00010748,2]
[346852998,1735326647594,-920.671261,0.00010748,2]
[346852999,1735326647605,-9241.53,0.00010748,2]
[346853000,1735326647619,-500.0,0.00010748,2]
[346853001,1735326647630,-728.57,0.00010748,2]
[346853002,1735326647642,-1305.28,0.00010748,2]
[346853003,1735326647654,-2876.33,0.00010748,2]
[346853004,1735326647666,-2636.32,0.00010748,2]
[346853005,1735326647678,-1357.62,0.00010748,2]
[346853006,1735326647691,-2134.88,0.00010748,2]
[346853007,1735326647702,-1505.95,0.00010748,2]
[346853008,1735326647714,-1465.93,0.00010748,2]
[346853009,1735326647727,-6616.61,0.00010748,2]
[346853010,1735326647738,-531.0,0.00010748,2]
[346853011,1735326647749,-500.0,0.00010748,2]
[346853012,1735326647760,-929.15,0.00010748,2]
[346853013,1735326647771,-1611.38,0.00010748,2]
[346853014,1735326647784,-1448.8,0.00010748,2]
[346853015,1735326647794,-500.0,0.00010748,2]
[346853016,1735326647806,-1007.82,0.00010748,2]
[346853017,1735326647817,-3385.7,0.00010748,2]
[346853018,1735326647828,-8433.03587654,0.00010748,2]
[346853019,1735326647851,-540.85412346,0.00010748,2]
[346853020,1735326647862,-500.0,0.00010748,2]
[346853021,1735326647873,-2772.4,0.00010748,2]
[346853022,1735326647884,-5512.68,0.00010748,2]
[346853023,1735326647895,-1689.82,0.00010748,2]
[346853024,1735326647906,-1699.24,0.00010748,2]
[346853025,1735326647917,-1291.75,0.00010748,2]
[346853026,1735326647928,-556.15,0.00010748,2]
[346853027,1735326647939,-1941.66,0.00010748,2]
[346853028,1735326647950,-500.0,0.00010748,2]
[346853029,1735326647961,-500.0,0.00010748,2]
[346853030,1735326647973,-1253.73,0.00010748,2]
[346853031,1735326647984,-1667.67,0.00010748,2]
[346853032,1735326647995,-693.45,0.00010749,2]
[346853033,1735326648006,-500.0,0.00010749,2]
[346853034,1735326648018,-500.0,0.00010749,2]
[346853035,1735326648029,-500.0,0.00010749,2]
[346853036,1735326648041,-1404.56,0.00010749,2]
[346853037,1735326648052,-500.0,0.00010749,2]
[346853038,1735326648064,-500.0,0.00010749,2]
[346853039,1735326648074,-500.0,0.00010749,2]
[346853040,1735326648087,-500.0,0.00010749,2]
[346853041,1735326648098,-500.0,0.00010749,2]
[346853042,1735326648110,-500.0,0.00010749,2]
[346853043,1735326648122,-500.0,0.00010749,2]
[346853044,1735326648133,-543.28,0.00010749,2]
[346853045,1735326648144,-573.74,0.00010749,2]
[346853046,1735326648154,-1086.83,0.00010749,2]
[346853047,1735326648166,-500.0,0.00010749,2]
[346853048,1735326648178,-500.0,0.00010749,2]
[346853049,1735326648189,-958.67158398,0.00010749,2]
[346853050,1735326648225,-170.38841602,0.00010749,2]
[346853051,1735326648236,-500.0,0.00010749,2]
[346853052,1735326648246,-582.0,0.00010749,2]
[346853053,1735326648258,-482.61158398,0.00010749,2]
[346853054,1735326648271,-17.38841602,0.00010749,2]
[346853055,1735326648283,-500.0,0.00010749,2]
[346853056,1735326648294,-201.86158398,0.00010749,2]
[346853057,1735326648308,-154.04337115,0.00010749,2]
[346853058,1735326648319,-140.59178734,0.00010749,2]
[346853059,1735326648332,-410.40821266,0.00010749,2]
[346853060,1735326648343,-157.61388735,0.00010749,2]
[346853061,1735326648356,-342.38611265,0.00010749,2]
[346853062,1735326648368,-500.0,0.00010749,2]
[346853063,1735326648379,-500.0,0.00010749,2]
[346853064,1735326648390,-500.0,0.00010749,2]
[346853065,1735326648403,-500.0,0.00010749,2]
[346853066,1735326648414,-500.0,0.00010749,2]
[346853067,1735326648425,-500.0,0.00010749,2]
[346853068,1735326648436,-500.0,0.00010749,2]
[346853069,1735326648446,-500.0,0.00010749,2]
[346853070,1735326648455,-500.0,0.00010749,2]
[346853071,1735326648465,-674.35,0.00010749,2]
[346853072,1735326648474,-500.0,0.00010749,2]
[346853073,1735326648483,-500.0,0.00010749,2]
[346853074,1735326648493,-500.0,0.00010749,2]
[346853075,1735326648503,-500.0,0.00010749,2]
[346853076,1735326648512,-500.0,0.00010749,2]
[346853077,1735326648522,-533.01,0.00010749,2]
[346853078,1735326648532,-767.99,0.00010749,2]
[346853079,1735326648542,-787.43,0.00010749,2]
[346853080,1735326648551,-500.0,0.00010749,2]
[346853081,1735326648561,-500.0,0.00010749,2]
[346853082,1735326648570,-500.0,0.00010749,2]
[346853083,1735326648579,-500.0,0.00010749,2]
[346853084,1735326648589,-740.57,0.00010749,2]
[346853085,1735326648598,-500.0,0.00010749,2]
[346853086,1735326648610,-541.74,0.00010749,2]
[346853087,1735326648621,-564.45,0.00010749,2]
[346853088,1735326648631,-500.0,0.00010749,2]
[346853089,1735326648640,-717.16,0.00010749,2]
[346853090,1735326648650,-889.91,0.00010749,2]
[346853091,1735326648660,-544.31692288,0.00010749,2]
[346853092,1735326648670,-608.57,0.00010749,2]
[346853093,1735326648679,-500.0,0.00010749,2]
[346853094,1735326648689,-331.64432523,0.00010749,2]
[346853095,1735326648699,-500.0,0.00010749,2]
[346853096,1735326648708,-500.0,0.00010749,2]
[346853097,1735326648718,-662.29,0.00010749,2]
[346853098,1735326648727,-520.62549126,0.00010749,2]
[346853099,1735326649155,-500.0,0.00010749,2]
[346853100,1735326649192,-500.0,0.00010749,2]
[346853101,1735326649214,-500.0,0.00010749,2]
[346853102,1735326649228,-500.0,0.00010749,2]
[346853103,1735326649238,-500.0,0.00010749,2]
[346853104,1735326649248,-81.40084381,0.00010749,2]
[346853105,1735326649261,-563.54915619,0.00010749,2]
[346853106,1735326649271,-500.0,0.00010749,2]
[346853107,1735326649281,-500.0,0.00010749,2]
[346853108,1735326649291,-500.0,0.00010749,2]
[346853109,1735326649301,-500.0,0.00010749,2]
[346853110,1735326649311,-500.0,0.00010749,2]
[346853111,1735326649321,-593.95,0.00010749,2]
[346853112,1735326649330,-537.4,0.00010749,2]
[346853113,1735326649340,-629.0,0.00010749,2]
[346853114,1735326649350,-500.0,0.00010749,2]
[346853115,1735326649359,-500.0,0.00010749,2]
[346853116,1735326649369,-500.0,0.00010749,2]
[346853117,1735326649379,-662.79,0.00010749,2]
[346853118,1735326649388,-500.0,0.00010749,2]
[346853119,1735326649398,-500.0,0.00010749,2]
[346853120,1735326649407,-500.0,0.00010749,2]
[346853121,1735326649417,-500.0,0.00010749,2]
[346853122,1735326649427,-500.0,0.00010749,2]
[346853123,1735326649436,-530.35,0.00010749,2]
[346853124,1735326649445,-500.0,0.00010749,2]
[346853125,1735326649454,-500.0,0.00010749,2]
[346853126,1735326649464,-870.8,0.00010749,2]
[346853127,1735326649474,-500.0,0.00010749,2]
[346853128,1735326649483,-500.0,0.00010749,2]
[346853129,1735326649493,-500.0,0.00010749,2]
[346853130,1735326649502,-500.0,0.00010749,2]
[346853131,1735326649511,-844.04,0.00010749,2]
[346853132,1735326649520,-500.0,0.00010749,2]
[346853133,1735326649531,-500.0,0.00010749,2]
[346853134,1735326649541,-520.15385005,0.00010749,2]
[346853135,1735326649551,-500.0,0.00010749,2]
[346853136,1735326649561,-500.0,0.00010749,2]
[346853137,1735326649570,-500.0,0.00010749,2]
[346853138,1735326649580,-500.0,0.00010749,2]
[346853139,1735326649592,-503.28,0.00010749,2]
[346853140,1735326649606,-851.89,0.00010749,2]
[346853141,1735326649624,-500.0,0.00010749,2]
[346853142,1735326649633,-500.0,0.00010749,2]
[346853143,1735326649652,-500.0,0.00010749,2]
[346853144,1735326649661,-624.55,0.00010749,2]
[346853145,1735326649670,-500.0,0.00010749,2]
[346853146,1735326649679,-564.62,0.00010749,2]
[346853147,1735326649691,-500.0,0.00010749,2]
[346853148,1735326649700,-578.62699776,0.00010749,2]
[346853150,1735326650366,-500.0,0.00010475,2]
[346853151,1735326650376,-399.02026791,0.00010475,2]
[346853152,1735326650389,-100.97973209,0.00010475,2]
[346853153,1735326650399,-500.0,0.00010475,2]
[346853154,1735326650411,-163.14,0.00010475,2]
[346853155,1735326650420,-249.54,0.00010475,2]
[346853156,1735326650431,-500.0,0.00010476,2]
[346853157,1735326650441,-500.0,0.00010476,2]
[346853158,1735326650451,-178.92203,0.0001048,2]
[346853159,1735326650461,-10.98300224,0.00010749,2]
[346853160,1735326650471,-500.0,0.00010749,2]
[346853161,1735326650481,-519.63,0.00010749,2]
[346853162,1735326650491,-866.37,0.00010749,2]
[346853163,1735326650501,-500.0,0.00010749,2]
[346853164,1735326650511,-500.0,0.00010749,2]
[346853165,1735326650521,-247.93523567,0.00010749,2]
[346853166,1735326650533,-358.95099704,0.00010749,2]
[346853167,1735326650625,-500.0,0.00010475,2]
[346853168,1735326650635,-183.64376729,0.00010749,2]
[346853169,1735326650645,-544.84,0.00010749,2]
[346853170,1735326650655,-500.0,0.00010749,2]
[346853171,1735326650664,-858.37,0.00010749,2]
[346853172,1735326650674,-500.0,0.00010749,2]
[346853173,1735326650685,-195.49036097,0.00010749,2]
[346853174,1735326650695,-500.0,0.00010749,2]
[346853175,1735326650706,-500.0,0.00010749,2]
[346853176,1735326650715,-500.0,0.00010749,2]
[346853177,1735326650724,-500.0,0.00010749,2]
[346853178,1735326650733,-1771.15,0.00010749,2]
[346853179,1735326650743,-338.73337174,0.00010749,2]
[346853180,1735326650756,-161.26662826,0.00010749,2]
[346853181,1735326650766,-500.0,0.00010749,2]
[346853182,1735326650777,-500.0,0.00010749,2]
[346853183,1735326650786,-500.0,0.00010749,2]
[346853184,1735326650795,-500.0,0.00010749,2]
[346853185,1735326650806,-500.0,0.00010749,2]
[346853186,1735326650816,-500.0,0.00010749,2]
[346853187,1735326650827,-740.53,0.00010749,2]
[346853188,1735326650837,-500.0,0.00010749,2]
[346853189,1735326650846,-500.0,0.00010749,2]
[346853190,1735326650856,-500.0,0.00010749,2]
[346853191,1735326650866,-898.20337174,0.00010749,2]
[346853192,1735326650879,-73.83662826,0.00010749,2]
[346853193,1735326650889,-500.0,0.00010749,2]
[346853194,1735326650899,-500.0,0.00010749,2]
[346853195,1735326650909,-1180.85,0.00010749,2]
[346853196,1735326650918,-500.0,0.00010749,2]
[346853197,1735326650927,-500.0,0.00010749,2]
[346853198,1735326650937,-500.0,0.00010749,2]
[346853199,1735326650947,-500.0,0.00010749,2]
[346853200,1735326650956,-634.09,0.00010749,2]
[346853201,1735326650966,-69.16947174,0.00010749,2]
[346853202,1735326650978,-430.83052826,0.00010749,2]
[346853203,1735326650988,-224.74179824,0.00010749,2]
[346853204,1735326651000,-275.25820176,0.00010749,2]
[346853205,1735326651010,-952.91,0.00010749,2]
[346853206,1735326651020,-500.0,0.00010749,2]
[346853207,1735326651030,-500.0,0.00010749,2]
[346853208,1735326651039,-500.0,0.00010749,2]
[346853209,1735326651049,-1572.62,0.00010749,2]
[346853210,1735326651059,-500.0,0.00010749,2]
[346853211,1735326651071,-500.0,0.00010749,2]
[346853212,1735326651081,-500.0,0.00010749,2]
[346853213,1735326651090,-622.06,0.00010749,2]
[346853214,1735326651100,-312.50103786,0.00010749,2]
[346853215,1735326651341,-187.49896214,0.00010749,2]
[346853216,1735326651351,-500.0,0.00010749,2]
[346853217,1735326651362,-814.28,0.00010749,2]
[346853218,1735326651372,-500.0,0.00010749,2]
[346853219,1735326651382,-500.0,0.00010749,2]
[346853220,1735326651392,-500.0,0.00010749,2]
[346853221,1735326651402,-500.0,0.00010749,2]
[346853222,1735326651411,-745.56,0.00010749,2]
[346853223,1735326651421,-500.0,0.00010749,2]
[346853224,1735326651430,-500.0,0.00010749,2]
[346853225,1735326651440,-500.0,0.00010749,2]
[346853226,1735326651450,-500.0,0.00010749,2]
[346853227,1735326651459,-500.0,0.00010749,2]
[346853228,1735326651469,-500.0,0.00010749,2]
[346853229,1735326651478,-500.0,0.00010749,2]
[346853230,1735326651487,-944.53,0.00010749,2]
[346853231,1735326651497,-500.0,0.00010749,2]
[346853232,1735326651506,-500.0,0.00010749,2]
[346853233,1735326651515,-500.0,0.00010749,2]
[346853234,1735326651524,-1657.51,0.00010749,2]
[346853235,1735326651538,-500.0,0.00010749,2]
[346853236,1735326651547,-500.0,0.00010749,2]
[346853237,1735326651557,-500.0,0.00010749,2]
[346853238,1735326651566,-500.0,0.00010749,2]
[346853239,1735326651575,-500.0,0.00010749,2]
[346853240,1735326651584,-500.0,0.00010749,2]
[346853241,1735326651594,-500.0,0.00010749,2]
[346853242,1735326651603,-500.0,0.00010749,2]
[346853243,1735326651616,-1356.52,0.00010749,2]
[346853244,1735326651626,-500.0,0.00010749,2]
[346853245,1735326651635,-500.0,0.00010749,2]
[346853246,1735326651644,-500.0,0.00010749,2]
[346853247,1735326651655,-1194.33,0.00010749,2]
[346853248,1735326651665,-500.0,0.00010749,2]
[346853249,1735326651675,-500.0,0.00010749,2]
[346853250,1735326651685,-500.0,0.00010749,2]
[346853251,1735326651695,-587.5,0.00010749,2]
[346853252,1735326651704,-500.0,0.00010749,2]
[346853253,1735326651714,-500.0,0.00010749,2]
[346853254,1735326651723,-500.0,0.00010749,2]
[346853255,1735326651732,-500.0,0.00010749,2]
[346853256,1735326651742,-500.0,0.00010749,2]
[346853257,1735326651751,-500.0,0.00010749,2]
[346853258,1735326651760,-1119.31,0.00010749,2]
[346853259,1735326651769,-500.0,0.00010749,2]
[346853260,1735326651782,-1056.53,0.00010749,2]
[346853261,1735326651791,-500.0,0.00010749,2]
[346853262,1735326651800,-500.0,0.00010749,2]
[346853263,1735326651810,-650.03,0.00010749,2]
[346853264,1735326651819,-500.0,0.00010749,2]
[346853265,1735326651828,-776.87,0.00010749,2]
[346853266,1735326651838,-500.0,0.00010749,2]
[346853267,1735326651847,-500.0,0.00010749,2]
[346853268,1735326651856,-500.0,0.00010749,2]
[346853269,1735326651867,-500.0,0.00010749,2]
[346853270,1735326651877,-902.26,0.00010749,2]